fUSD/lending_fUSD_20260409
["ID","MTS","AMOUNT","RATE_DAILY","PERIOD"]
[420100239,1775676654617,-256.376188,0.00013808,2]
[420100240,1775676654626,-151.0,0.00013808,2]
[420100241,1775676654635,-533.119579,0.00013808,2]
[420100242,1775676654645,-216.387975,0.00013808,2]
[420100243,1775676654654,-151.0,0.00013808,2]
[420100244,1775676654662,-256.376188,0.00013808,2]
[420100245,1775676654672,-257.860135,0.00013808,2]
[420100246,1775676654682,-151.0,0.00013808,2]
[420100247,1775676654692,-256.376188,0.00013808,2]
[420100248,1775676654703,-151.0,0.00013808,2]
[420100249,1775676654713,-151.0,0.00013808,2]
[420100250,1775676654723,-151.0,0.00013808,2]
[420100251,1775676654732,-151.0,0.00013808,2]
[420100252,1775676654741,-151.0,0.00013808,2]
[420100253,1775676654751,-151.0,0.00013808,2]
[420100254,1775676654760,-151.0,0.00013808,2]
[420100255,1775676654770,-177.372723,0.00013808,2]
[420100256,1775676654779,-151.0,0.00013808,2]
[420100257,1775676654788,-151.0,0.00013808,2]
[420100258,1775676654797,-185.437452,0.00013808,2]
[420100259,1775676654807,-245.217068,0.00013808,2]
[420100260,1775676654816,-245.217068,0.00013808,2]
[420100261,1775676654825,-151.0,0.00013808,2]
[420100262,1775676654834,-245.217068,0.00013808,2]
[420100263,1775676654844,-245.217068,0.00013808,2]
[420100264,1775676654853,-151.0,0.00013808,2]
[420100265,1775676654863,-151.0,0.00013808,2]
[420100266,1775676654874,-151.0,0.00013808,2]
[420100267,1775676654884,-994.01934182,0.00013815,2]
[420100268,1775676654893,-1000.0,0.00013832,2]
[420100269,1775676654903,-166.66,0.00013836,2]
[420100270,1775676654912,-200.0,0.00013836,2]
[420100271,1775676654921,-315.667346,0.00013843,2]
[420100272,1775676654930,-200.0,0.00013847,2]
[420100273,1775676654940,-200.0,0.00013847,2]
[420100274,1775676654950,-200.0,0.00013847,2]
[420100275,1775676654959,-152.1118183,0.00013861,2]
[420100276,1775676654968,-151.0,0.00013928,2]
[420100277,1775676654978,-151.0,0.00013928,2]
[420100278,1775676654987,-151.0,0.00013928,2]
[420100279,1775676654997,-151.0,0.00013928,2]
[420100280,1775676655006,-151.0,0.00013928,2]
[420100281,1775676655016,-151.0,0.00013928,2]
[420100282,1775676655025,-151.0,0.00013928,2]
[420100283,1775676655034,-151.0,0.00013928,2]
[420100284,1775676655044,-185.081385,0.00013928,2]
[420100285,1775676655053,-151.0,0.00013928,2]
[420100286,1775676655062,-151.0,0.00013928,2]
[420100287,1775676655071,-185.081385,0.00013928,2]
[420100288,1775676655081,-320.89115,0.00013928,2]
[420100289,1775676655090,-151.0,0.00013928,2]
[420100290,1775676655100,-151.0,0.00013928,2]
[420100291,1775676655109,-185.081385,0.00013928,2]
[420100292,1775676655119,-320.89115,0.00013928,2]
[420100293,1775676655128,-151.0,0.00013928,2]
[420100294,1775676655137,-185.081385,0.00013928,2]
[420100295,1775676655146,-320.89115,0.00013928,2]
[420100296,1775676655156,-151.0,0.00013928,2]
[420100297,1775676655167,-320.89115,0.00013928,2]
[420100298,1775676655176,-374.008372,0.00013928,2]
[420100299,1775676655185,-186.847315,0.00013928,2]
[420100300,1775676655195,-374.008372,0.00013928,2]
[420100301,1775676655204,-684.739571,0.00013928,2]
[420100302,1775676655214,-201.410641,0.00013928,2]
[420100303,1775676655224,-374.008372,0.00013928,2]
[420100304,1775676655234,-684.739571,0.00013928,2]
[420100305,1775676655243,-201.410641,0.00013928,2]
[420100306,1775676655252,-374.008372,0.00013928,2]
[420100307,1775676655261,-684.739571,0.00013928,2]
[420100308,1775676655271,-201.410641,0.00013928,2]
[420100309,1775676655281,-153.753597,0.00013928,2]
[420100310,1775676655290,-684.739571,0.00013928,2]
[420100311,1775676655300,-151.0,0.00013928,2]
[420100312,1775676655310,-151.0,0.00013928,2]
[420100313,1775676655319,-201.410641,0.00013928,2]
[420100314,1775676655328,-153.753597,0.00013928,2]
[420100315,1775676655337,-151.0,0.00013928,2]
[420100316,1775676655347,-151.0,0.00013928,2]
[420100317,1775676655357,-153.753597,0.00013928,2]
[420100318,1775676655366,-151.0,0.00013928,2]
[420100319,1775676655376,-153.753597,0.00013928,2]
[420100320,1775676655386,-155.998488,0.00013928,2]
[420100321,1775676655397,-155.998488,0.00013928,2]
[420100322,1775676655406,-155.998488,0.00013928,2]
[420100323,1775676655416,-155.998488,0.00013928,2]
[420100324,1775676655424,-151.0,0.00013928,2]
[420100325,1775676655434,-200.0,0.00013955,2]
[420100326,1775676655444,-217.15233878,0.00013955,2]
[420100327,1775676655453,-183.879532,0.00013957,2]
[420100328,1775676655462,-183.879532,0.00013957,2]
[420100329,1775676655472,-183.879532,0.00013957,2]
[420100330,1775676655482,-183.879532,0.00013957,2]
[420100331,1775676655492,-151.0,0.00013957,2]
[420100332,1775676655502,-281.814743,0.00013957,2]
[420100333,1775676655511,-281.814743,0.00013957,2]
[420100334,1775676655521,-151.0,0.00013957,2]
[420100335,1775676655531,-281.814743,0.00013957,2]
[420100336,1775676655541,-151.0,0.00013957,2]
[420100337,1775676655550,-151.0,0.00013957,2]
[420100338,1775676655559,-151.0,0.00013957,2]
[420100339,1775676655569,-151.0,0.00013957,2]
[420100340,1775676655579,-151.0,0.00013957,2]
[420100341,1775676655588,-281.814743,0.00013957,2]
[420100342,1775676655597,-151.0,0.00013957,2]
[420100343,1775676655607,-151.0,0.00013957,2]
[420100344,1775676655617,-151.0,0.00013957,2]
[420100345,1775676655626,-151.222904,0.00013957,2]
[420100346,1775676655635,-151.0,0.00013957,2]
[420100347,1775676655645,-151.0,0.00013957,2]
[420100348,1775676655654,-150.0,0.00013973,2]
[420100349,1775676655664,-150.0,0.00013973,2]
[420100350,1775676655673,-150.0,0.00013973,2]
[420100351,1775676655683,-150.0,0.00013973,2]
[420100352,1775676655693,-166.66,0.00013973,2]
[420100353,1775676655703,-1064.96,0.00013973,2]
[420100354,1775676655712,-200.0,0.00013986,2]
[420100355,1775676655722,-200.0,0.00013986,2]
[420100356,1775676655731,-200.0,0.00013986,2]
[420100357,1775676655740,-150.0,0.00013988,2]
[420100358,1775676655750,-1000.0,0.00013998,2]
[420100359,1775676655759,-151.0,0.00014082,2]
[420100360,1775676655768,-151.0,0.00014082,2]
[420100361,1775676655777,-151.0,0.00014082,2]
[420100362,1775676655786,-292.165765,0.00014082,2]
[420100363,1775676655795,-151.0,0.00014082,2]
[420100364,1775676655805,-151.0,0.00014082,2]
[420100365,1775676655814,-151.0,0.00014082,2]
[420100366,1775676655823,-353.938604,0.00014082,2]
[420100367,1775676655832,-151.0,0.00014082,2]
[420100368,1775676655841,-447.188631,0.00014082,2]
[420100369,1775676655850,-151.0,0.00014082,2]
[420100370,1775676655859,-151.0,0.00014082,2]
[420100371,1775676655869,-353.938604,0.00014082,2]
[420100372,1775676655878,-447.188631,0.00014082,2]
[420100373,1775676655888,-151.0,0.00014082,2]
[420100374,1775676655898,-151.0,0.00014082,2]
[420100375,1775676655908,-151.0,0.00014082,2]
[420100376,1775676655918,-599.554744,0.00014082,2]
[420100377,1775676655927,-353.938604,0.00014082,2]
[420100378,1775676655936,-447.188631,0.00014082,2]
[420100379,1775676655945,-151.0,0.00014082,2]
[420100380,1775676655955,-599.554744,0.00014082,2]
[420100381,1775676655964,-353.938604,0.00014082,2]
[420100382,1775676655973,-447.188631,0.00014082,2]
[420100383,1775676655982,-599.554744,0.00014082,2]
[420100384,1775676655992,-599.554744,0.00014082,2]
[420100385,1775676656001,-151.0,0.00014082,2]
[420100386,1775676656010,-151.0,0.00014082,2]
[420100387,1775676656020,-151.0,0.00014082,2]
[420100388,1775676656028,-151.0,0.00014082,2]
[420100389,1775676656037,-295.41666,0.00014082,2]
[420100390,1775676656047,-151.0,0.00014082,2]
[420100391,1775676656057,-151.0,0.00014082,2]
[420100392,1775676656066,-151.0,0.00014082,2]
[420100393,1775676656075,-151.0,0.00014082,2]
[420100394,1775676656085,-151.0,0.00014082,2]
[420100395,1775676656094,-151.0,0.00014082,2]
[420100396,1775676656103,-151.0,0.00014082,2]
[420100397,1775676656112,-151.0,0.00014082,2]
[420100398,1775676656122,-151.0,0.00014082,2]
[420100399,1775676656131,-157.271778,0.00014082,2]
[420100400,1775676656140,-151.0,0.00014082,2]
[420100401,1775676656150,-151.0,0.00014082,2]
[420100402,1775676656158,-160.870176,0.00014082,2]
[420100403,1775676656168,-6805.0,0.00014082,2]
[420100404,1775676656178,-166.66,0.0001411,2]
[420100405,1775676656187,-212.57606171,0.00014113,2]
[420100406,1775676656196,-1000.0,0.00014124,2]
[420100407,1775676656206,-18461.29189227,0.00014141,2]
[420100408,1775676656215,-151.0,0.00014141,2]
[420100409,1775676656224,-382.684518,0.00014141,2]
[420100410,1775676656234,-151.0,0.00014141,2]
[420100411,1775676656243,-382.684518,0.00014141,2]
[420100412,1775676656253,-252.791544,0.00014141,2]
[420100413,1775676656262,-382.684518,0.00014141,2]
[420100414,1775676656271,-252.791544,0.00014141,2]
[420100415,1775676656280,-151.0,0.00014141,2]
[420100416,1775676656290,-382.684518,0.00014141,2]
[420100417,1775676656299,-252.791544,0.00014141,2]
[420100418,1775676656308,-892.21053,0.00014141,2]
[420100419,1775676656317,-151.0,0.00014141,2]
[420100420,1775676656327,-252.791544,0.00014141,2]
[420100421,1775676656336,-151.0,0.00014141,2]
[420100422,1775676656346,-892.21053,0.00014141,2]
[420100423,1775676656356,-151.0,0.00014141,2]
[420100424,1775676656365,-892.21053,0.00014141,2]
[420100425,1775676656376,-892.21053,0.00014141,2]
[420100426,1775676656385,-264.356208,0.00014141,2]
[420100427,1775676656394,-264.356208,0.00014141,2]
[420100428,1775676656404,-264.356208,0.00014141,2]
[420100429,1775676656414,-264.356208,0.00014141,2]
[420100430,1775676656423,-195.251014,0.00014141,2]
[420100431,1775676656432,-195.251014,0.00014141,2]
[420100432,1775676656441,-195.251014,0.00014141,2]
[420100433,1775676656450,-195.251014,0.00014141,2]
[420100434,1775676656460,-783.271789,0.00014141,2]
[420100435,1775676656470,-1104.329926,0.00014141,2]
[420100436,1775676656479,-1104.329926,0.00014141,2]
[420100437,1775676656488,-1104.329926,0.00014141,2]
[420100438,1775676656498,-151.0,0.00014141,2]
[420100439,1775676656507,-1104.329926,0.00014141,2]
[420100440,1775676656517,-151.0,0.00014141,2]
[420100441,1775676656526,-317.449149,0.00014141,2]
[420100442,1775676656536,-151.0,0.00014141,2]
[420100443,1775676656545,-783.271789,0.00014141,2]
[420100444,1775676656554,-317.449149,0.00014141,2]
[420100445,1775676656564,-783.271789,0.00014141,2]
[420100446,1775676656573,-317.449149,0.00014141,2]
[420100447,1775676656583,-783.271789,0.00014141,2]
[420100448,1775676656592,-317.449149,0.00014141,2]
[420100449,1775676656601,-151.0,0.00014141,2]
[420100450,1775676656610,-151.0,0.00014141,2]
[420100451,1775676656620,-386.728794,0.00014141,2]
[420100452,1775676656630,-151.0,0.00014141,2]
[420100453,1775676656639,-151.0,0.00014141,2]
[420100454,1775676656648,-386.728794,0.00014141,2]
[420100455,1775676656658,-151.0,0.00014141,2]
[420100456,1775676656668,-386.728794,0.00014141,2]
[420100457,1775676656677,-386.728794,0.00014141,2]
[420100458,1775676656687,-157.215334,0.00014141,2]
[420100459,1775676656696,-157.215334,0.00014141,2]
[420100460,1775676656706,-157.215334,0.00014141,2]
[420100461,1775676656715,-157.215334,0.00014141,2]
[420100462,1775676656724,-540.97569897,0.00014147,2]
[420100463,1775676656734,-150.0,0.00014148,2]
[420100464,1775676656744,-151.0,0.0001416,2]
[420100465,1775676656754,-501.0,0.00014162,2]
[420100466,1775676656764,-2000.0,0.000142,2]
[420100467,1775676656772,-1000.0,0.00014218,2]
[420100468,1775676656782,-1000.0,0.00014221,2]
[420100469,1775676656791,-1372.65078494,0.00014223,2]
[420100470,1775676656801,-1068.5,0.00014223,2]
[420100471,1775676656810,-166.66,0.00014247,2]
[420100472,1775676656820,-150.0,0.00014247,2]
[420100473,1775676656829,-150.0,0.00014247,2]
[420100474,1775676656838,-150.0,0.00014247,2]
[420100475,1775676656847,-1000.0,0.00014247,2]
[420100476,1775676656857,-1000.0,0.00014247,2]
[420100477,1775676656866,-1000.0,0.00014247,2]
[420100478,1775676656876,-1000.0,0.00014247,2]
[420100479,1775676656885,-696.79007536,0.00014247,2]
[420100480,1775676656894,-230.66718579,0.00014247,2]
[420100481,1775676656903,-242.46089406,0.00014247,2]
[420100482,1775676656912,-1000.0,0.00014247,2]
[420100483,1775676656921,-501.03865935,0.00014247,2]
[420100484,1775676656931,-503.55298516,0.00014247,2]
[420100485,1775676656940,-1000.0,0.00014247,2]
[420100486,1775676656949,-1000.0,0.00014247,2]
[420100487,1775676656959,-792.48284775,0.00014247,2]
[420100488,1775676656968,-244.99358581,0.00014247,2]
[420100489,1775676656978,-1000.0,0.00014247,2]
[420100490,1775676656987,-1000.0,0.00014247,2]
[420100491,1775676656997,-1000.0,0.00014247,2]
[420100492,1775676657006,-1000.0,0.00014247,2]
[420100493,1775676657016,-1082.33512146,0.00014247,2]
[420100494,1775676657025,-1000.0,0.00014247,2]
[420100495,1775676657035,-1000.0,0.00014247,2]
[420100496,1775676657045,-1000.0,0.00014247,2]
[420100497,1775676657055,-1000.0,0.00014247,2]
[420100498,1775676657064,-1000.0,0.00014247,2]
[420100499,1775676657074,-1003.11256555,0.00014247,2]
[420100500,1775676657084,-504.71632379,0.00014247,2]
[420100501,1775676657093,-1000.0,0.00014247,2]
[420100502,1775676657102,-1000.0,0.00014247,2]
[420100503,1775676657111,-1064.96,0.00014247,2]
[420100504,1775676657121,-2000.0,0.00014252,2]
[420100505,1775676657129,-1000.0,0.00014255,2]
[420100506,1775676657139,-1000.0,0.00014264,2]
[420100507,1775676657148,-501.12672973,0.00014267,2]
[420100508,1775676657157,-1000.0,0.00014267,2]
[420100509,1775676657168,-1000.0,0.00014267,2]
[420100510,1775676657178,-1000.0,0.00014274,2]
[420100511,1775676657188,-1000.0,0.00014274,2]
[420100512,1775676657197,-5000.0,0.00014277,2]
[420100513,1775676657206,-5000.0,0.00014277,2]
[420100514,1775676657216,-497.50981,0.00014277,2]
[420100515,1775676657226,-497.50981,0.00014277,2]
[420100516,1775676657235,-497.50981,0.00014277,2]
[420100517,1775676657245,-813.297609,0.00014277,2]
[420100518,1775676657254,-628.899081,0.00014277,2]
[420100519,1775676657264,-497.50981,0.00014277,2]
[420100520,1775676657273,-813.297609,0.00014277,2]
[420100521,1775676657283,-628.899081,0.00014277,2]
[420100522,1775676657291,-813.297609,0.00014277,2]
[420100523,1775676657301,-628.899081,0.00014277,2]
[420100524,1775676657310,-151.0,0.00014277,2]
[420100525,1775676657319,-376.806069,0.00014277,2]
[420100526,1775676657330,-813.297609,0.00014277,2]
[420100527,1775676657339,-628.899081,0.00014277,2]
[420100528,1775676657348,-187.115827,0.00014277,2]
[420100529,1775676657358,-376.806069,0.00014277,2]
[420100530,1775676657367,-264.848129,0.00014277,2]
[420100531,1775676657378,-376.806069,0.00014277,2]
[420100532,1775676657387,-151.0,0.00014277,2]
[420100533,1775676657396,-376.806069,0.00014277,2]
[420100534,1775676657406,-151.0,0.00014277,2]
[420100535,1775676657416,-151.0,0.00014277,2]
[420100536,1775676657426,-499.519837,0.00014277,2]
[420100537,1775676657437,-151.0,0.00014277,2]
[420100538,1775676657446,-499.519837,0.00014277,2]
[420100539,1775676657456,-499.519837,0.00014277,2]
[420100540,1775676657465,-499.519837,0.00014277,2]
[420100541,1775676657475,-151.0,0.00014277,2]
[420100542,1775676657485,-151.0,0.00014277,2]
[420100543,1775676657495,-151.0,0.00014277,2]
[420100544,1775676657504,-151.0,0.00014277,2]
[420100545,1775676657514,-155.571974,0.00014277,2]
[420100546,1775676657523,-1352.133494,0.00014277,2]
[420100547,1775676657533,-151.0,0.00014277,2]
[420100548,1775676657542,-1352.133494,0.00014277,2]
[420100549,1775676657552,-151.0,0.00014277,2]
[420100550,1775676657562,-1352.133494,0.00014277,2]
[420100551,1775676657572,-151.0,0.00014277,2]
[420100552,1775676657582,-216.316401,0.00014277,2]
[420100553,1775676657592,-1352.133494,0.00014277,2]
[420100554,1775676657602,-151.0,0.00014277,2]
[420100555,1775676657612,-151.0,0.00014277,2]
[420100556,1775676657622,-284.145926,0.00014277,2]
[420100557,1775676657632,-151.0,0.00014277,2]
[420100558,1775676657641,-151.0,0.00014277,2]
[420100559,1775676657651,-1000.0,0.00014324,2]
[420100560,1775676657661,-1000.0,0.00014343,2]
[420100561,1775676657671,-994.01934182,0.00014381,2]
[420100562,1775676657681,-2134.31,0.00014384,2]
[420100563,1775676657691,-166.66,0.00014384,2]
[420100564,1775676657700,-786.02,0.00014384,2]
[420100565,1775676657708,-985.91,0.00014384,2]
[420100566,1775676657718,-200.0,0.00014384,2]
[420100567,1775676657728,-1000.0,0.00014393,2]
[420100568,1775676657738,-6453.0,0.00014396,2]
[420100569,1775676657748,-162.0,0.000144,2]
[420100570,1775676657758,-151.0,0.00014404,2]
[420100571,1775676657768,-157.308111,0.00014404,2]
[420100572,1775676657777,-151.0,0.00014404,2]
[420100573,1775676657787,-151.0,0.00014404,2]
[420100574,1775676657797,-151.0,0.00014404,2]
[420100575,1775676657807,-151.0,0.00014404,2]
[420100576,1775676657816,-151.0,0.00014404,2]
[420100577,1775676657826,-151.0,0.00014404,2]
[420100578,1775676657835,-151.0,0.00014404,2]
[420100579,1775676657845,-154.175785,0.00014404,2]
[420100580,1775676657855,-151.0,0.00014404,2]
[420100581,1775676657865,-151.0,0.00014404,2]
[420100582,1775676657875,-151.0,0.00014404,2]
[420100583,1775676657884,-151.0,0.00014404,2]
[420100584,1775676657895,-151.0,0.00014404,2]
[420100585,1775676657904,-151.0,0.00014404,2]
[420100586,1775676657915,-280.775661,0.00014404,2]
[420100587,1775676657924,-216.766191,0.00014404,2]
[420100588,1775676657934,-151.109716,0.00014404,2]
[420100589,1775676657944,-151.0,0.00014404,2]
[420100590,1775676658107,-151.0,0.00014404,2]
[420100591,1775676658118,-151.0,0.00014404,2]
[420100592,1775676658128,-151.0,0.00014404,2]
[420100593,1775676658139,-151.0,0.00014404,2]
[420100594,1775676658149,-151.0,0.00014404,2]
[420100595,1775676658160,-168.77661,0.00014404,2]
[420100596,1775676658171,-151.0,0.00014404,2]
[420100597,1775676658182,-232.700006,0.00014404,2]
[420100598,1775676658191,-151.0,0.00014404,2]
[420100599,1775676658202,-151.0,0.00014404,2]
[420100600,1775676658212,-367.057,0.00014404,2]
[420100601,1775676658222,-232.700006,0.00014404,2]
[420100602,1775676658232,-151.0,0.00014404,2]
[420100603,1775676658242,-151.0,0.00014404,2]
[420100604,1775676658253,-367.057,0.00014404,2]
[420100605,1775676658263,-232.700006,0.00014404,2]
[420100606,1775676658273,-151.0,0.00014404,2]
[420100607,1775676658284,-367.057,0.00014404,2]
[420100608,1775676658294,-232.700006,0.00014404,2]
[420100609,1775676658304,-367.057,0.00014404,2]
[420100610,1775676658314,-256.490125,0.00014404,2]
[420100611,1775676658325,-256.490125,0.00014404,2]
[420100612,1775676658335,-151.0,0.00014404,2]
[420100613,1775676658345,-151.0,0.00014404,2]
[420100614,1775676658355,-256.490125,0.00014404,2]
[420100615,1775676658366,-151.0,0.00014404,2]
[420100616,1775676658376,-151.0,0.00014404,2]
[420100617,1775676658387,-256.490125,0.00014404,2]
[420100618,1775676658397,-151.0,0.00014404,2]
[420100619,1775676658408,-151.0,0.00014404,2]
[420100620,1775676658418,-151.0,0.00014404,2]
[420100621,1775676658428,-606.860603,0.00014404,2]
[420100622,1775676658437,-151.0,0.00014404,2]
[420100623,1775676658447,-151.0,0.00014404,2]
[420100624,1775676658457,-151.0,0.00014404,2]
[420100625,1775676658468,-606.860603,0.00014404,2]
[420100626,1775676658479,-160.003602,0.00014404,2]
[420100627,1775676658489,-151.0,0.00014404,2]
[420100628,1775676658499,-606.860603,0.00014404,2]
[420100629,1775676658509,-151.0,0.00014404,2]
[420100630,1775676658520,-151.0,0.00014404,2]
[420100631,1775676658530,-606.860603,0.00014404,2]
[420100632,1775676658540,-287.450998,0.00014404,2]
[420100633,1775676658551,-238.427466,0.00014404,2]
[420100634,1775676658561,-406.856224,0.00014404,2]
[420100635,1775676658571,-178.732607,0.00014404,2]
[420100636,1775676658582,-151.0,0.00014404,2]
[420100637,1775676658591,-151.0,0.00014404,2]
[420100638,1775676658601,-238.427466,0.00014404,2]
[420100639,1775676658611,-406.856224,0.00014404,2]
[420100640,1775676658621,-178.732607,0.00014404,2]
[420100641,1775676658631,-151.0,0.00014404,2]
[420100642,1775676658642,-238.427466,0.00014404,2]
[420100643,1775676658653,-406.856224,0.00014404,2]
[420100644,1775676658663,-238.427466,0.00014404,2]
[420100645,1775676658674,-406.856224,0.00014404,2]
[420100646,1775676658686,-178.732607,0.00014404,2]
[420100647,1775676658696,-178.732607,0.00014404,2]
[420100648,1775676658707,-151.0,0.00014404,2]
[420100649,1775676658717,-811.409452,0.00014404,2]
[420100650,1775676658727,-151.0,0.00014404,2]
[420100651,1775676658737,-811.409452,0.00014404,2]
[420100652,1775676658748,-811.409452,0.00014404,2]
[420100653,1775676658758,-811.409452,0.00014404,2]
[420100654,1775676658769,-151.0,0.00014404,2]
[420100655,1775676658780,-261.075905,0.00014404,2]
[420100656,1775676658790,-735.158061,0.00014404,2]
[420100657,1775676658801,-735.158061,0.00014404,2]
[420100658,1775676658811,-735.158061,0.00014404,2]
[420100659,1775676658822,-911.817401,0.00014404,2]
[420100660,1775676658838,-735.158061,0.00014404,2]
[420100661,1775676658849,-911.817401,0.00014404,2]
[420100662,1775676658860,-911.817401,0.00014404,2]
[420100663,1775676658871,-911.817401,0.00014404,2]
[420100664,1775676658882,-1000.0,0.00014429,2]
[420100665,1775676658893,-1068.5,0.00014432,2]
[420100666,1775676658904,-1000.0,0.0001444,2]
[420100667,1775676658916,-1000.0,0.00014462,2]
[420100668,1775676658928,-1000.0,0.00014488,2]
[420100669,1775676658939,-2129.0,0.00014497,2]
[420100670,1775676658951,-201.2726407,0.00014503,2]
[420100671,1775676658962,-272.54907657,0.00014503,2]
[420100672,1775676658972,-1064.96,0.00014521,2]
[420100673,1775676658983,-451.0,0.00014531,2]
[420100674,1775676658995,-1000.0,0.00014536,2]
[420100675,1775676659006,-1000.0,0.00014583,2]
[420100676,1775676659018,-1068.5,0.0001464,2]
[420100677,1775676659029,-203.17613441,0.00014644,2]
[420100678,1775676659040,-451.0,0.00014646,2]
[420100679,1775676659051,-786.02,0.00014658,2]
[420100680,1775676659062,-985.91,0.00014658,2]
[420100681,1775676659074,-350.0,0.00014664,2]
[420100682,1775676659085,-1005.98065818,0.00014684,2]
[420100683,1775676659096,-255.28,0.00014692,2]
[420100684,1775676659107,-7523.91385164,0.00014695,2]
[420100685,1775676659117,-500.0,0.00014718,2]
[420100686,1775676659128,-2000.0,0.00014718,2]
[420100687,1775676659138,-1573.0,0.0001472,2]
[420100688,1775676659148,-162.0,0.0001472,2]
[420100689,1775676659158,-350.0,0.00014754,2]
[420100690,1775676659170,-255.28,0.00014765,2]
[420100691,1775676659180,-1816.0,0.00014771,2]
[420100692,1775676659192,-1000.0,0.00014771,2]
[420100693,1775676659203,-1600.0,0.00014776,2]
[420100694,1775676659214,-250.0,0.00014795,2]
[420100695,1775676659224,-815.21682164,0.00014795,2]
[420100696,1775676659234,-518.40309967,0.00014795,2]
[420100697,1775676659244,-755.90284256,0.00014795,2]
[420100698,1775676659255,-1500.0,0.00014795,2]
[420100699,1775676659266,-1500.0,0.00014795,2]
[420100700,1775676659276,-1500.0,0.00014795,2]
[420100701,1775676659287,-1430.82314799,0.00014795,2]
[420100702,1775676659298,-1500.0,0.00014795,2]
[420100703,1775676659309,-1500.0,0.00014795,2]
[420100704,1775676659321,-1002.38567456,0.00014795,2]
[420100705,1775676659331,-1500.0,0.00014795,2]
[420100706,1775676659344,-1500.0,0.00014795,2]
[420100707,1775676659355,-445.29859118,0.00014795,2]
[420100708,1775676659365,-892.34268442,0.00014795,2]
[420100709,1775676659375,-1500.0,0.00014795,2]
[420100710,1775676659386,-1500.0,0.00014795,2]
[420100711,1775676659396,-502.36079739,0.00014795,2]
[420100712,1775676659406,-1064.96,0.00014795,2]
[420100713,1775676659416,-191.0,0.00014795,2]
[420100714,1775676659426,-1816.0,0.00014797,2]
[420100715,1775676659437,-1070.5730129,0.00014803,2]
[420100716,1775676659446,-644.24089955,0.00014812,2]
[420100717,1775676659457,-1500.0,0.00014815,2]
[420100718,1775676659467,-1500.0,0.00014815,2]
[420100719,1775676659478,-151.0,0.00014815,2]
[420100720,1775676659489,-151.0,0.00014815,2]
[420100721,1775676659499,-481.943384,0.00014815,2]
[420100722,1775676659510,-481.943384,0.00014815,2]
[420100723,1775676659520,-481.943384,0.00014815,2]
[420100724,1775676659531,-151.0,0.00014815,2]
[420100725,1775676659541,-151.0,0.00014815,2]
[420100726,1775676659552,-525.417452,0.00014815,2]
[420100727,1775676659562,-481.943384,0.00014815,2]
[420100728,1775676659572,-181.106164,0.00014815,2]
[420100729,1775676659582,-151.0,0.00014815,2]
[420100730,1775676659593,-525.417452,0.00014815,2]
[420100731,1775676659604,-151.0,0.00014815,2]
[420100732,1775676659614,-151.0,0.00014815,2]
[420100733,1775676659625,-151.0,0.00014815,2]
[420100734,1775676659636,-466.087884,0.00014815,2]
[420100735,1775676659646,-306.368959,0.00014815,2]
[420100736,1775676659656,-525.417452,0.00014815,2]
[420100737,1775676659667,-306.368959,0.00014815,2]
[420100738,1775676659677,-636.376379,0.00014815,2]